fUSD/lending_fUSD_20260410
["ID","MTS","AMOUNT","RATE_DAILY","PERIOD"]
[420181499,1775754649986,-151.0,0.00015566,2]
[420181500,1775754649995,-174.893936,0.00015566,2]
[420181501,1775754650005,-174.893936,0.00015566,2]
[420181502,1775754650015,-151.0,0.00015566,2]
[420181503,1775754650024,-226.18162,0.00015566,2]
[420181504,1775754650034,-214.848297,0.00015566,2]
[420181505,1775754650043,-214.848297,0.00015566,2]
[420181506,1775754650053,-151.0,0.00015566,2]
[420181507,1775754650062,-487.156168,0.00015566,2]
[420181508,1775754650071,-214.848297,0.00015566,2]
[420181509,1775754650080,-151.0,0.00015566,2]
[420181510,1775754650089,-487.156168,0.00015566,2]
[420181511,1775754650099,-214.848297,0.00015566,2]
[420181512,1775754650107,-487.156168,0.00015566,2]
[420181513,1775754650116,-487.156168,0.00015566,2]
[420181514,1775754650126,-151.0,0.00015566,2]
[420181515,1775754650253,-151.0,0.00015566,2]
[420181516,1775754650262,-151.0,0.00015566,2]
[420181517,1775754650272,-151.0,0.00015566,2]
[420181518,1775754650281,-205.230087,0.00015566,2]
[420181519,1775754650290,-205.230087,0.00015566,2]
[420181520,1775754650299,-151.0,0.00015566,2]
[420181521,1775754650308,-151.0,0.00015566,2]
[420181522,1775754650317,-151.0,0.00015566,2]
[420181523,1775754650326,-205.230087,0.00015566,2]
[420181524,1775754650336,-3080.917359,0.00015566,2]
[420181525,1775754650345,-205.230087,0.00015566,2]
[420181526,1775754650355,-151.0,0.00015566,2]
[420181527,1775754650364,-3080.917359,0.00015566,2]
[420181528,1775754650373,-151.0,0.00015566,2]
[420181529,1775754650382,-3080.917359,0.00015566,2]
[420181530,1775754650392,-151.0,0.00015566,2]
[420181531,1775754650402,-3080.917359,0.00015566,2]
[420181532,1775754650411,-151.0,0.00015566,2]
[420181533,1775754650420,-151.0,0.00015566,2]
[420181534,1775754650430,-151.0,0.00015566,2]
[420181535,1775754650439,-151.0,0.00015566,2]
[420181536,1775754650448,-151.0,0.00015566,2]
[420181537,1775754650457,-2621.348786,0.00015566,2]
[420181538,1775754650467,-2621.348786,0.00015566,2]
[420181539,1775754650476,-2621.348786,0.00015566,2]
[420181540,1775754650487,-2621.348778,0.00015566,2]
[420181541,1775754650496,-250.0,0.00015567,2]
[420181542,1775754650505,-1500.0,0.00015568,2]
[420181543,1775754650514,-1500.0,0.00015568,2]
[420181544,1775754650523,-1500.0,0.00015568,2]
[420181545,1775754650532,-500.63697267,0.00015573,2]
[420181546,1775754650541,-500.0,0.00015573,2]
[420181547,1775754650550,-500.0,0.00015573,2]
[420181548,1775754650560,-500.0,0.00015573,2]
[420181549,1775754650569,-697.4247786,0.00015576,2]
[420181550,1775754650578,-1500.0,0.00015576,2]
[420181551,1775754650587,-502.25267506,0.00015576,2]
[420181552,1775754650596,-579.34193707,0.0001559,2]
[420181553,1775754650605,-677.0,0.00015596,2]
[420181554,1775754650615,-150525.87916169,0.000156,2]
[420181555,1775754650625,-400.0,0.000156,5]
[420181556,1775754650634,-156.38530362,0.000156,2]
[420181557,1775754650643,-2000.0,0.000156,2]
[420181558,1775754650653,-1500.0,0.00015623,2]
[420181559,1775754650662,-217.0,0.00015647,5]
[420181560,1775754650671,-156.0,0.00015647,5]
[420181561,1775754650680,-500.0,0.00015693,2]
[420181562,1775754650690,-200.0,0.00015693,2]
[420181563,1775754650698,-252.902838,0.00015698,2]
[420181564,1775754650708,-400.0,0.000157,5]
[420181565,1775754650717,-2000.0,0.000157,2]
[420181566,1775754650726,-25000.0,0.00015701,3]
[420181567,1775754650735,-200.0,0.00015706,2]
[420181568,1775754650744,-12895.88924913,0.00015706,2]
[420181569,1775754650753,-194.72792766,0.00015706,2]
[420181570,1775754650762,-648.39102338,0.00015706,2]
[420181571,1775754650771,-25000.0,0.0001571,3]
[420181572,1775754650781,-1167.658814,0.0001571,3]
[420181573,1775754650790,-184.44757,0.0001571,2]
[420181574,1775754650800,-151.0,0.0001571,2]
[420181575,1775754650810,-151.0,0.0001571,2]
[420181576,1775754650819,-469.040764,0.0001571,2]
[420181577,1775754650828,-469.040764,0.0001571,2]
[420181578,1775754650837,-469.040764,0.0001571,2]
[420181579,1775754650846,-469.040764,0.0001571,2]
[420181580,1775754650856,-153.030017,0.0001571,2]
[420181581,1775754650865,-151.0,0.0001571,2]
[420181582,1775754650875,-151.0,0.0001571,2]
[420181583,1775754650884,-151.0,0.0001571,2]
[420181584,1775754650894,-214.848297,0.0001571,2]
[420181585,1775754650902,-214.848297,0.0001571,2]
[420181586,1775754650912,-151.0,0.0001571,2]
[420181587,1775754650921,-487.156168,0.0001571,2]
[420181588,1775754650930,-214.848297,0.0001571,2]
[420181589,1775754650939,-151.0,0.0001571,2]
[420181590,1775754650948,-487.156168,0.0001571,2]
[420181591,1775754650957,-214.848296,0.0001571,2]
[420181592,1775754650966,-487.156168,0.0001571,2]
[420181593,1775754650975,-487.156178,0.0001571,2]
[420181594,1775754650984,-151.0,0.0001571,2]
[420181595,1775754650993,-151.0,0.0001571,2]
[420181596,1775754651002,-151.0,0.0001571,2]
[420181597,1775754651011,-151.0,0.0001571,2]
[420181598,1775754651021,-1419.43825865,0.00015711,2]
[420181599,1775754651030,-579.29,0.00015711,2]
[420181600,1775754651039,-677.0,0.00015711,2]
[420181601,1775754651048,-47429.5813501,0.00015712,2]
[420181602,1775754651057,-168.0,0.0001572,2]
[420181603,1775754651067,-151.0,0.00015744,2]
[420181604,1775754651077,-151.0,0.00015744,2]
[420181605,1775754651086,-151.0,0.00015744,2]
[420181606,1775754651095,-423.157626,0.00015744,2]
[420181607,1775754651104,-151.0,0.00015744,2]
[420181608,1775754651113,-423.157626,0.00015744,2]
[420181609,1775754651123,-423.157626,0.00015744,2]
[420181610,1775754651131,-151.0,0.00015744,2]
[420181611,1775754651140,-423.157626,0.00015744,2]
[420181612,1775754651148,-174.893936,0.00015744,2]
[420181613,1775754651158,-151.0,0.00015744,2]
[420181614,1775754651167,-174.893936,0.00015744,2]
[420181615,1775754651175,-174.893936,0.00015744,2]
[420181616,1775754651184,-174.893936,0.00015744,2]
[420181617,1775754651193,-168.0,0.00015746,2]
[420181618,1775754651202,-677.0,0.00015782,2]
[420181619,1775754651211,-677.0,0.00015794,2]
[420181620,1775754651220,-3155.14584415,0.000158,2]
[420181621,1775754651228,-400.0,0.000158,5]
[420181622,1775754651237,-2403.08622306,0.000158,2]
[420181623,1775754651246,-2000.0,0.000158,2]
[420181624,1775754651255,-677.0,0.00015806,2]
[420181625,1775754651264,-2403.08622305,0.0001582,2]
[420181626,1775754651274,-666.0,0.00015839,2]
[420181627,1775754651283,-481.213978,0.0001584,2]
[420181628,1775754651292,-82955.71177736,0.0001584,7]
[420181629,1775754651301,-151.0,0.0001584,2]
[420181630,1775754651311,-151.0,0.0001584,2]
[420181631,1775754651320,-151.0,0.0001584,2]
[420181632,1775754651330,-151.0,0.0001584,2]
[420181633,1775754651339,-2403.08622305,0.0001584,2]
[420181634,1775754651348,-2403.08622305,0.0001586,2]
[420181635,1775754651357,-400.0,0.0001587,2]
[420181636,1775754651366,-2403.08622305,0.0001588,2]
[420181637,1775754651376,-2000.0,0.00015882,2]
[420181638,1775754651385,-175.023334,0.00015882,2]
[420181639,1775754651395,-151.0,0.00015882,2]
[420181640,1775754651404,-151.0,0.00015882,2]
[420181641,1775754651413,-423.157626,0.00015882,2]
[420181642,1775754651424,-151.0,0.00015882,2]
[420181643,1775754651432,-423.157626,0.00015882,2]
[420181644,1775754651442,-423.157626,0.00015882,2]
[420181645,1775754651451,-151.0,0.00015882,2]
[420181646,1775754651460,-423.157626,0.00015882,2]
[420181647,1775754651469,-174.893936,0.00015882,2]
[420181648,1775754651478,-151.0,0.00015882,2]
[420181649,1775754651487,-174.893936,0.00015882,2]
[420181650,1775754651495,-174.893936,0.00015882,2]
[420181651,1775754651504,-174.893936,0.00015882,2]
[420181652,1775754651513,-2949.0,0.0001589,4]
[420181653,1775754651522,-307.9,0.0001589,2]
[420181654,1775754651531,-500.0,0.0001589,2]
[420181655,1775754651541,-500.0,0.0001589,2]
[420181656,1775754651550,-500.0,0.0001589,2]
[420181657,1775754651560,-500.0,0.0001589,2]
[420181658,1775754651569,-500.0,0.0001589,2]
[420181659,1775754651579,-500.0,0.0001589,2]
[420181660,1775754651588,-2000.0,0.0001589,2]
[420181661,1775754651597,-4000.0,0.00015895,2]
[420181662,1775754651606,-151.0,0.00015895,2]
[420181663,1775754651615,-151.0,0.00015895,2]
[420181664,1775754651624,-670.84839751,0.00015899,2]
[420181665,1775754651634,-500.0,0.00015899,2]
[420181666,1775754651644,-500.0,0.00015899,2]
[420181667,1775754651653,-579.29,0.00015899,2]
[420181668,1775754651663,-579.29,0.00015899,2]
[420181669,1775754651672,-579.29,0.00015899,2]
[420181670,1775754651682,-4000.0,0.000159,3]
[420181671,1775754651691,-1801.14053382,0.000159,2]
[420181672,1775754651701,-9126.7707,0.000159,2]
[420181673,1775754651710,-151.0,0.000159,2]
[420181674,1775754651719,-151.0,0.000159,2]
[420181675,1775754651728,-151.0,0.000159,2]
[420181676,1775754651737,-151.0,0.000159,2]
[420181677,1775754651746,-151.0,0.000159,2]
[420181678,1775754651755,-151.0,0.000159,2]
[420181679,1775754651764,-151.0,0.000159,2]
[420181680,1775754651773,-469.040764,0.000159,2]
[420181681,1775754651782,-469.040764,0.000159,2]
[420181682,1775754651791,-469.040764,0.000159,2]
[420181683,1775754651800,-469.040764,0.000159,2]
[420181684,1775754651809,-469.040764,0.000159,2]
[420181685,1775754651818,-469.040764,0.000159,2]
[420181686,1775754651827,-469.040764,0.000159,2]
[420181687,1775754651836,-469.040764,0.000159,2]
[420181688,1775754651844,-151.0,0.000159,2]
[420181689,1775754651853,-151.0,0.000159,2]
[420181690,1775754651862,-151.0,0.000159,2]
[420181691,1775754651872,-151.0,0.000159,2]
[420181692,1775754651881,-151.0,0.000159,2]
[420181693,1775754651890,-151.0,0.000159,2]
[420181694,1775754651899,-151.0,0.000159,2]
[420181695,1775754651909,-151.0,0.000159,2]
[420181696,1775754651918,-151.0,0.000159,2]
[420181697,1775754651927,-423.157626,0.000159,2]
[420181698,1775754651936,-423.157626,0.000159,2]
[420181699,1775754651945,-423.157626,0.000159,2]
[420181700,1775754651954,-151.0,0.000159,2]
[420181701,1775754651963,-423.157635,0.000159,2]
[420181702,1775754651972,-174.893936,0.000159,2]
[420181703,1775754651981,-151.0,0.000159,2]
[420181704,1775754651990,-174.893936,0.000159,2]
[420181705,1775754651999,-174.893936,0.000159,2]
[420181706,1775754652009,-174.893942,0.000159,2]
[420181707,1775754652019,-1087.0,0.000159,5]
[420181708,1775754652028,-194.92897175,0.000159,2]
[420181709,1775754652037,-4171.69292289,0.000159,2]
[420181710,1775754652046,-6674.34642422,0.000159,2]
[420181711,1775754652056,-33205.31565987,0.000159,2]
[420181712,1775754652066,-1644.58052088,0.000159,2]
[420181713,1775754652075,-2403.08622305,0.000159,2]
[420181714,1775754652084,-514.31934122,0.000159,2]
[420181715,1775754652093,-514655.21287569,0.000159,2]
[420181716,1775754652103,-2000.0,0.000159,2]
[420181717,1775754652111,-3750.02,0.00015945,2]
[420181718,1775754652120,-5000.0,0.0001596,2]
[420181719,1775754652130,-166.66,0.00015969,2]
[420181720,1775754652139,-300.0,0.0001597,2]
[420181721,1775754652147,-300.0,0.0001597,2]
[420181722,1775754652157,-400.0,0.0001597,2]
[420181723,1775754652166,-300.0,0.0001597,2]
[420181724,1775754652174,-400.0,0.0001597,2]
[420181725,1775754652183,-400.0,0.0001597,2]
[420181726,1775754652192,-400.0,0.0001597,2]
[420181727,1775754652201,-400.0,0.0001597,2]
[420181728,1775754652210,-11984.0,0.00015973,2]
[420181729,1775754652219,-500.49712419,0.00015973,2]
[420181730,1775754652228,-155.73,0.00015973,15]
[420181731,1775754652237,-500.0,0.00015973,2]
[420181732,1775754652246,-500.0,0.00015973,2]
[420181733,1775754652254,-501.59977952,0.00015973,2]
[420181734,1775754652264,-589.16060176,0.00015973,2]
[420181735,1775754652274,-2968.0,0.00015978,5]
[420181736,1775754652283,-500.0,0.00015979,2]
[420181737,1775754652293,-579.29,0.00015979,2]
[420181738,1775754652303,-120272.1348373,0.0001598,2]
[420181739,1775754652312,-25000.0,0.0001598,2]
[420181740,1775754652321,-175.56625313,0.00015983,2]
[420181741,1775754652331,-796.68360192,0.0001599,2]
[420181742,1775754652341,-157.0,0.0001599,3]
[420181743,1775754652350,-579.34193707,0.0001599,2]
[420181744,1775754652359,-579.34193707,0.0001599,2]
[420181745,1775754652368,-155.0,0.00015998,2]
[420181746,1775754652378,-150.0,0.00015999,2]
[420181747,1775754652387,-500.0,0.00015999,2]
[420181748,1775754652397,-500.0,0.00015999,2]
[420181749,1775754652406,-500.0,0.00015999,2]
[420181750,1775754652416,-500.0,0.00015999,2]
[420181751,1775754652425,-500.0,0.00015999,2]
[420181752,1775754652434,-500.0,0.00015999,2]
[420181753,1775754652443,-500.0,0.00015999,2]
[420181754,1775754652452,-500.0,0.00015999,2]
[420181755,1775754652461,-500.0,0.00015999,2]
[420181756,1775754652470,-500.0,0.00015999,2]
[420181757,1775754652479,-500.0,0.00015999,2]
[420181758,1775754652489,-500.0,0.00015999,2]
[420181759,1775754652498,-500.0,0.00015999,2]
[420181760,1775754652508,-500.0,0.00015999,2]
[420181761,1775754652518,-500.0,0.00015999,2]
[420181762,1775754652527,-500.0,0.00015999,2]
[420181763,1775754652537,-500.0,0.00015999,2]
[420181764,1775754652546,-500.0,0.00015999,2]
[420181765,1775754652556,-500.0,0.00015999,2]
[420181766,1775754652564,-500.0,0.00015999,2]
[420181767,1775754652573,-500.0,0.00015999,2]
[420181768,1775754652582,-500.0,0.00015999,2]
[420181769,1775754652591,-500.0,0.00015999,2]
[420181770,1775754652601,-500.0,0.00015999,2]
[420181771,1775754652610,-232.65571075,0.00015999,2]
[420181772,1775754652619,-160.499407,0.00015999,2]
[420181773,1775754652628,-151.0,0.00015999,2]
[420181774,1775754652637,-160.502258,0.00015999,2]
[420181775,1775754652648,-579.29,0.00015999,2]
[420181776,1775754652658,-579.29,0.00015999,2]
[420181777,1775754652667,-579.29,0.00015999,2]
[420181778,1775754652676,-579.29,0.00015999,2]
[420181779,1775754652686,-579.29,0.00015999,2]
[420181780,1775754652695,-579.29,0.00015999,2]
[420181781,1775754652704,-579.29,0.00015999,2]
[420181782,1775754652713,-579.29,0.00015999,2]
[420181783,1775754652722,-579.29,0.00015999,2]
[420181784,1775754652731,-579.29,0.00015999,2]
[420181785,1775754652739,-579.29,0.00015999,2]
[420181786,1775754652748,-579.39259653,0.00015999,2]
[420181787,1775754652757,-600198.80672281,0.00016,2]
[420181788,1775754654272,-0.01038999,0.00013699,2]
[420181789,1775754654282,-2431.17897732,0.00013699,2]
[420181790,1775754654800,-151.0,0.00011854,2]
[420181791,1775754654810,-1286.33721868,0.00012567,2]
[420181792,1775754654820,-37.46249069,0.00013699,2]
[420181793,1775754654829,-3287.01825,0.00013699,2]
[420181794,1775754654838,-579.13607761,0.00013699,2]
[420181795,1775754654953,-170.01072106,0.00011854,2]
[420181796,1775754654963,-1889.51578039,0.00013699,2]
[420181797,1775754654971,-3287.01825,0.00013699,2]
[420181798,1775754654980,-210.005767,0.00013699,2]
[420181799,1775754654989,-210.005767,0.00013699,2]
[420181800,1775754654998,-2468.651858,0.00013699,2]
[420181801,1775754655008,-3287.01825,0.00013699,2]
[420181802,1775754655019,-2083.42114485,0.00013699,2]
[420181803,1775754655040,-346.4546635,0.00013699,2]
[420181804,1775754655052,-38.77604965,0.00013699,2]
[420181805,1775754655061,-3287.01825,0.00013699,2]
[420181806,1775754655071,-3773.0,0.00013828,2]
[420181807,1775754655080,-160.0,0.00014071,2]
[420181808,1775754655090,-210.005767,0.00014406,2]
[420181809,1775754655098,-2468.651858,0.00014406,2]
[420181810,1775754655107,-3287.01825,0.00014406,2]
[420181811,1775754655117,-210.005767,0.00014406,2]
[420181812,1775754655126,-2468.651858,0.00014406,2]
[420181813,1775754655135,-3287.01825,0.00014406,2]
[420181814,1775754655144,-210.005767,0.0001447,2]
[420181815,1775754655154,-2468.651858,0.0001447,2]
[420181816,1775754655163,-3287.01825,0.0001447,2]
[420181817,1775754655173,-210.005767,0.0001447,2]
[420181818,1775754655182,-4432.101491,0.00014575,2]
[420181819,1775754655191,-210.005767,0.0001461,2]
[420181820,1775754655200,-2468.651858,0.0001461,2]
[420181821,1775754655210,-3287.01825,0.0001461,2]
[420181822,1775754655221,-3130.978289,0.00015303,2]
[420181823,1775754655231,-128903.27929008,0.00016,2]
[420181824,1775754655242,-19545.54955829,0.00016,2]
[420181825,1775754655474,-210.005767,0.00013699,2]
[420181826,1775754655975,-210.005767,0.00013699,2]
[420181827,1775754655986,-210.005767,0.00014406,2]
[420181828,1775754655995,-1920.56789189,0.0001447,2]
[420181829,1775754656007,-548.08396611,0.0001447,2]
[420181830,1775754656016,-3171.8142288,0.0001447,2]
[420181831,1775754656036,-115.2040212,0.0001447,2]
[420181832,1775754656044,-210.005767,0.0001447,2]
[420181833,1775754656054,-210.005767,0.0001461,2]
[420181834,1775754656063,-2468.651852,0.0001461,2]
[420181835,1775754656072,-1926.67958231,0.0001461,2]
[420181836,1775754656240,-1286.33721868,0.00013233,2]
[420181837,1775754656249,-1266.13698764,0.0001461,2]
[420181838,1775754656261,-94.20168105,0.0001461,2]
[420181839,1775754656271,-210.005776,0.0001461,2]
[420181840,1775754656280,-341.55223211,0.00016,2]
[420181846,1775755763426,158.0,6.625e-05,2]
[420181847,1775755763664,156.0,6.625e-05,2]
[420181848,1775755765629,156.0,6.625e-05,2]
[420181849,1775755765676,156.0,6.625e-05,2]
[420181850,1775755765807,156.0,6.625e-05,2]
[420181851,1775755765877,156.0,6.625e-05,2]
[420181852,1775755765933,156.0,6.625e-05,2]
[420181853,1775755766016,156.0,6.625e-05,2]
[420181854,1775755766057,156.0,6.625e-05,2]
[420181855,1775755766102,156.0,6.625e-05,2]
[420181856,1775755766145,156.0,6.625e-05,2]
[420181857,1775755766257,156.0,6.625e-05,2]
[420181858,1775755831491,-300.0,9.597e-05,2]
[420181860,1775755831501,-1200.0,9.597e-05,2]
[420181862,1775755831510,-250.0,9.597e-05,2]
[420181863,1775755831519,-38283.63906378,9.598e-05,2]
[420181864,1775755831530,-19159.63124247,9.598e-05,2]
[420181865,1775755831542,-24300.57392139,9.598e-05,2]
[420181866,1775755831729,-1110.61079819,9.598e-05,2]
[420181867,1775755831741,-533.09216,9.598e-05,2]
[420181868,1775755831753,-402.11590291,9.598e-05,2]
[420181869,1775755831764,-1042.95,9.598e-05,2]
[420181870,1775755831776,-620.42829203,9.598e-05,2]
[420181871,1775755831788,-4444.02619997,9.598e-05,2]
[420181876,1775755837860,-1758.5011845,9.598e-05,2]
[420181877,1775755837875,-1852.927,9.598e-05,2]
[420181878,1775755837887,-764.8018764,9.598e-05,2]
[420181879,1775755837953,-3701.07149798,9.598e-05,2]
[420181880,1775755837966,-323.64481207,9.598e-05,2]
[420181881,1775755837979,-7060.92014268,9.598e-05,2]
[420181882,1775755837994,-1176.555,9.598e-05,2]
[420181883,1775755838112,-1972.78274802,9.598e-05,2]
[420182030,1775755839968,-774.6985844,9.598e-05,2]
[420182036,1775755840017,-968.0,9.598e-05,2]
[420182038,1775755840030,-473.06063174,9.598e-05,2]
[420182067,1775755840301,-17166.30964091,9.598e-05,2]
[420182070,1775755840314,-34331.38532584,9.598e-05,2]
[420182072,1775755840326,-2987.2,9.598e-05,2]
[420182074,1775755840342,-2095.592,9.598e-05,2]
[420182076,1775755840356,-1603.7496992,9.598e-05,2]
[420182134,1775755840914,-134591.99181176,9.598e-05,2]
[420182328,1775755842711,-1639449.54696376,9.598e-05,2]
[420182330,1775755842721,-3303.852,9.602e-05,2]
[420182332,1775755842730,-176.99,9.602e-05,2]
[420182334,1775755842740,-2500.0,9.698e-05,2]
[420182336,1775755842750,-500.0,9.797e-05,2]
[420182338,1775755842760,-374.73489475,9.797e-05,2]
[420182340,1775755842770,-500.0,9.797e-05,2]
[420182342,1775755842779,-500.0,9.797e-05,2]
[420182344,1775755842789,-438.34380775,9.797e-05,2]
[420182346,1775755842799,-529.21979592,9.797e-05,2]
[420182349,1775755842809,-500.0,9.797e-05,2]
[420182351,1775755842819,-500.0,9.797e-05,2]
[420182353,1775755842829,-500.0,9.797e-05,2]
[420182355,1775755842840,-500.0,9.797e-05,2]
[420182357,1775755842850,-585.80180756,9.797e-05,2]
[420182359,1775755842860,-1000.0,9.798e-05,2]
[420182361,1775755842870,-300.0,9.9e-05,3]
[420182363,1775755842881,-600.0,0.0001,3]
[420182365,1775755842891,-908.0,0.00010556,2]
[420182367,1775755842900,-250.0,0.00010557,2]
[420182369,1775755842910,-155.0,0.00010777,2]
[420182371,1775755842920,-150.0,0.00011,2]
[420182374,1775755842930,-15413.0,0.00011,2]
[420182376,1775755842940,-1131.65557403,0.00011099,2]
[420182378,1775755842950,-1131.65557397,0.00011099,2]
[420182380,1775755842960,-1131.65557397,0.00011099,2]
[420182382,1775755842970,-578.82937025,0.00011099,2]
[420182384,1775755842981,-578.8293702,0.00011099,2]
[420182386,1775755842990,-578.8293702,0.00011099,2]
[420182388,1775755843000,-171.11,0.00011334,2]
[420182390,1775755843010,-151.0,0.00011411,2]
[420182392,1775755843020,-5533.0,0.000117,3]
[420182394,1775755843029,-578.8293702,0.00011765,2]
[420182396,1775755843039,-1131.65557397,0.00011765,2]
[420182398,1775755843049,-175.2128,0.000124,2]
[420182400,1775755843059,-2851.31645288,0.000124,5]
[420182403,1775755843072,-2681.68354712,0.000124,5]
[420182405,1775755843082,-578.8293702,0.00012454,2]
[420182407,1775755843092,-1131.65557397,0.00012454,2]
[420182409,1775755843102,-19720.75,0.00012998,2]
[420182411,1775755843112,-250.0,0.00013,2]
[420182413,1775755843121,-1600.0,0.00013005,2]
[420182415,1775755843132,-506.0,0.000131,2]
[420182417,1775755843142,-506.0,0.000131,2]
[420182419,1775755843151,-166.06,0.00013102,2]
[420182421,1775755843161,-212.44,0.00013102,2]
[420182423,1775755843172,-578.8293702,0.00013144,2]
[420182426,1775755843183,-1131.65557397,0.00013144,2]
[420182428,1775755843193,-160.0,0.0001362,2]
[420182430,1775755843202,-500.0,0.00013698,2]
[420182432,1775755843211,-500.0,0.00013698,2]
[420182434,1775755843221,-508.98990694,0.00013698,2]
[420182436,1775755843230,-500.0,0.00013698,2]
[420182438,1775755843241,-500.0,0.00013698,2]
[420182440,1775755843250,-500.0,0.00013698,2]
[420182442,1775755843260,-500.0,0.00013698,2]
[420182444,1775755843270,-500.0,0.00013698,2]
[420182446,1775755843279,-500.0,0.00013698,2]
[420182448,1775755843289,-500.0,0.00013698,2]
[420182450,1775755843299,-500.0,0.00013698,2]
[420182452,1775755843308,-500.0,0.00013698,2]
[420182454,1775755843318,-500.0,0.00013698,2]
[420182456,1775755843328,-500.0,0.00013698,2]
[420182459,1775755843339,-500.0,0.00013698,2]
[420182461,1775755843349,-501.5074136,0.00013698,2]
[420182463,1775755843359,-500.0,0.00013698,2]
[420182465,1775755843369,-500.0,0.00013698,2]
[420182467,1775755843378,-500.0,0.00013698,2]
[420182469,1775755843387,-500.0,0.00013698,2]
[420182471,1775755843397,-500.0,0.00013698,2]
[420182473,1775755843407,-500.0,0.00013698,2]
[420182475,1775755843417,-500.0,0.00013698,2]
[420182477,1775755843427,-500.0,0.00013698,2]
[420182479,1775755843437,-195.87,0.00013698,2]
[420182481,1775755843446,-500.0,0.00013698,2]
[420182483,1775755843456,-272.06,0.00013698,2]
[420182485,1775755843465,-349.73684697,0.00013698,2]
[420182487,1775755843475,-500.0,0.00013698,2]
[420182490,1775755843485,-1000.0,0.00013699,7]
[420182492,1775755843495,-150.0,0.00013699,2]
[420182494,1775755843505,-150.0,0.00013699,2]
[420182496,1775755843515,-204.6636,0.000137,2]
[420182498,1775755843525,-500.0,0.00013716,2]
[420182500,1775755843534,-500.0,0.00013778,2]
[420182504,1775755843543,-578.8293702,0.00013833,2]
[420182508,1775755843553,-1131.65557397,0.00013833,2]
[420182511,1775755843562,-522.39,0.00013843,2]
[420182513,1775755843573,-166.67,0.00013958,2]
[420182515,1775755843583,-200.0,0.00013962,2]
[420182517,1775755843593,-3240.0,0.00013968,2]
[420182519,1775755843603,-195.87,0.00013972,2]
[420182522,1775755843613,-195.88,0.00014246,2]
[420182523,1775755843622,-1047.0,0.00014279,2]
[420182525,1775755843633,-506.0,0.00014295,3]
[420182528,1775755843643,-500.0,0.00014437,2]
[420182530,1775755843653,-500.0,0.00014437,2]
[420182532,1775755843662,-1264.0,0.00014438,2]
[420182534,1775755843672,-926.0,0.00014438,2]
[420182536,1775755843682,-1218.0,0.00014438,2]
[420182538,1775755843692,-2471.0,0.00014438,2]
[420182540,1775755843701,-3524.0,0.00014438,2]
[420182542,1775755843711,-500.0,0.00014469,2]
[420182544,1775755843721,-578.8293702,0.00014522,2]
[420182546,1775755843731,-1131.65557397,0.00014522,2]
[420182548,1775755843741,-1600.0,0.00014631,2]
[420182550,1775755843751,-300.0,0.00015,2]
[420182552,1775755843760,-200.0,0.00015032,2]
[420182554,1775755843770,-578.20924308,0.00015032,2]
[420182556,1775755843781,-151.0,0.00015032,2]
[420182559,1775755843791,-151.0,0.00015032,2]
[420182561,1775755843800,-601.3376128,0.00015032,2]
[420182563,1775755843810,-151.0,0.00015032,2]
[420182564,1775755843819,-151.0,0.00015032,2]
[420182567,1775755843829,-151.0,0.00015032,2]
[420182569,1775755843848,-151.0,0.00015032,2]
[420182572,1775755843859,-151.0,0.00015032,2]
[420182574,1775755843868,-151.0,0.00015032,2]